bitfinex-derivatives/quotes_SOLF0:USTF0_20260204
["timestamp","ask_amount","ask_price","bid_price","bid_amount"]
[1770236765846,9.6322,93.615,93.549,39.91987132]
[1770236766143,8.0181853,93.65,93.549,39.91987132]
[1770236766341,8.0181853,93.63,93.511,39.91987132]
[1770236766847,9.6356,93.582,93.511,39.91987132]
[1770236767438,9.6356,93.582,93.513,39.93352702]
[1770236768045,9.6347,93.591,93.515,39.93352702]
[1770236768245,9.92526894,93.647,93.515,39.93352702]
[1770236768441,8.0181853,93.65,93.515,39.93352702]
[1770236769051,9.6344,93.594,93.528,39.93000431]
[1770236769244,19.2578,93.647,93.528,39.93000431]
[1770236769245,8.0181853,93.63,93.528,39.93000431]
[1770236770343,9.6365,93.573,93.528,39.93000431]
[1770236770948,8.0181853,93.61,93.528,39.93000431]
[1770236771548,9.637,93.569,93.528,39.93000431]
[1770236771852,19.2669,93.603,93.528,39.93000431]
[1770236772454,9.6382,93.557,93.528,39.93000431]
[1770236772655,9.6382,93.557,93.449,31.98]
[1770236772656,8.0181853,93.59,93.493,39.9368882]
[1770236772844,8.0181853,93.57,93.493,39.9368882]
[1770236773344,9.6417,93.522,93.507,1.937e-05]
[1770236773542,8.0181853,93.58,93.507,1.937e-05]
[1770236774947,8.0181853,93.56,93.507,1.937e-05]
[1770236775552,19.2752,93.563,93.507,1.937e-05]
[1770236776549,149.8643,93.597,93.507,1.937e-05]
[1770236776550,19.2701,93.588,93.507,39.95591627]
[1770236776752,9.92526894,93.637,93.52,8.0181853]
[1770236776952,9.6341,93.597,93.521,39.9558969]
[1770236777451,8.0181853,93.63,93.521,39.9558969]
[1770236777951,8.0181853,93.61,93.521,39.9558969]
[1770236778851,9.6367,93.572,93.521,39.9558969]
[1770236779756,9.6374,93.564,93.521,39.9558969]
[1770236780857,9.6385,93.554,93.521,39.9558969]
[1770236781853,9.6396,93.543,93.507,1.937e-05]
[1770236782052,8.0181853,93.59,93.507,1.937e-05]
[1770236782450,19.2707,93.585,93.507,1.937e-05]
[1770236783061,9.64,93.539,93.507,1.937e-05]
[1770236784562,8.0181853,93.57,93.507,1.937e-05]
[1770236784962,19.2723,93.577,93.507,1.937e-05]
[1770236785154,9.6407,93.533,93.507,1.937e-05]
[1770236787264,9.6414,93.525,93.507,1.937e-05]
[1770236787662,19.2727,93.575,93.507,1.937e-05]
[1770236788361,9.641,93.53,93.507,1.937e-05]
[1770236788660,9.92526894,93.598,93.463,39.99857026]
[1770236788661,8.0181853,93.57,93.463,39.99857026]
[1770236788858,9.6434,93.507,93.463,39.99857026]
[1770236790565,19.2754,93.562,93.463,39.99857026]
[1770236790763,149.8685,93.594,93.463,39.99857026]
[1770236791269,19.2739,93.569,93.463,39.99857026]
[1770236791460,8.0181853,93.58,93.463,39.99857026]
[1770236792064,9.6417,93.523,93.463,39.99857026]
[1770236792265,149.8925,93.579,93.463,39.99857026]
[1770236792569,19.2744,93.567,93.463,39.99857026]
[1770236794466,8.0181853,93.56,93.463,39.99857026]
[1770236794670,8.0181853,93.54,93.463,39.99857026]
[1770236795773,9.6446,93.495,93.463,39.99857026]
[1770236796570,8.0181853,93.54,93.463,39.99857026]
[1770236798870,8.0181853,93.54,93.448,35.10935481]
[1770236799378,8.0181853,93.52,93.438,35.10935481]
[1770236799974,149.9145,93.565,93.454,37.88884117]
[1770236800167,8.0181853,93.55,93.454,37.88884117]
[1770236800772,9.644,93.5,93.454,37.88884117]
[1770236800974,8.0181853,93.55,93.454,37.88884117]
[1770236801370,8.0181853,93.53,93.454,2.77948636]
[1770236801570,8.0181853,93.51,93.454,8.636e-05]
[1770236802377,9.6474,93.468,93.454,8.636e-05]
[1770236802580,8.04429563,93.51,93.454,8.636e-05]
[1770236802973,19.2863,93.509,93.454,8.636e-05]
[1770236803376,8.04429563,93.51,93.454,8.636e-05]
[1770236803578,19.2875,93.503,93.454,8.636e-05]
[1770236804779,9.6467,93.474,93.454,8.636e-05]
[1770236805169,19.2875,93.503,93.454,8.636e-05]
[1770236806376,9.6481,93.461,93.454,8.636e-05]
[1770236807278,9.6496,93.446,93.422,35.2939812]
[1770236807872,8.04429563,93.47,93.341,9.92711538]
[1770236808186,150.0434,93.485,93.342,35.2939812]
[1770236808187,8.04429563,93.45,93.342,35.2939812]
[1770236808682,9.6542,93.401,93.342,35.2939812]
[1770236809284,9.6552,93.393,93.342,35.2939812]
[1770236811083,8.04429563,93.45,93.342,35.2939812]
[1770236811084,150.1188,93.438,93.342,35.2939812]
[1770236811281,8.04429563,93.43,93.342,35.2939812]
[1770236811484,9.6566,93.378,93.342,35.2939812]
[1770236811887,8.04429563,93.41,93.305,1.86364342]
[1770236812186,19.3074,93.407,93.28,8.04429563]
[1770236812385,19.3074,93.407,93.285,1.86425242]
[1770236812785,19.3016,93.435,93.32,8.04429563]
[1770236813184,150.0533,93.479,93.33,8.04429563]
[1770236813185,150.0765,93.464,93.33,8.04429563]
[1770236813387,8.04429563,93.45,93.33,8.04429563]
[1770236813682,8.04429563,93.45,93.31,8.04429563]
[1770236813683,150.109,93.444,93.31,8.04429563]
[1770236813890,8.04429563,93.45,93.312,26.84105586]
[1770236814189,150.1007,93.449,93.312,26.84105586]
[1770236814388,9.655,93.394,93.319,26.84105586]
[1770236815785,9.655,93.394,93.323,26.90453319]
[1770236817086,19.3002,93.442,93.331,22.10402792]
[1770236817291,150.0716,93.467,93.351,22.10402792]
[1770236817489,150.0819,93.461,93.351,22.10402792]
[1770236817692,19.2983,93.451,93.351,22.10402792]
[1770236819694,9.6522,93.421,93.351,22.10402792]
[1770236820099,9.65,93.443,93.37,8.04429563]
[1770236820398,8.04429563,93.49,93.391,22.13502011]
[1770236820599,19.2904,93.489,93.391,22.13502011]
[1770236820805,9.6508,93.435,93.391,22.13502011]
[1770236821204,19.2905,93.488,93.391,22.13502011]
[1770236822306,9.649,93.452,93.391,22.13502011]
[1770236823902,9.6487,93.455,93.391,22.13502011]
[1770236824101,8.04429563,93.51,93.391,22.13502011]
[1770236824300,150.0053,93.509,93.391,22.13502011]
[1770236824508,8.04429563,93.49,93.391,22.13502011]
[1770236826408,9.6501,93.441,93.391,22.13502011]
[1770236826707,8.04429563,93.47,93.391,22.13502011]
[1770236828309,9.651,93.433,93.391,22.13502011]
[1770236829309,19.2925,93.479,93.391,22.13502011]
[1770236829712,9.6505,93.437,93.391,22.13502011]
[1770236830401,9.6497,93.446,93.391,22.13502011]
[1770236830804,8.04429563,93.49,93.391,22.13502011]
[1770236831812,19.2929,93.477,93.391,22.13502011]
[1770236832708,9.6498,93.444,93.391,22.13502011]
[1770236832913,19.2879,93.501,93.393,22.03244455]
[1770236833115,19.2879,93.501,93.342,31.98]
[1770236833116,8.04429563,93.54,93.411,22.09507578]
[1770236833311,9.6435,93.506,93.411,22.09507578]
[1770236833513,9.6435,93.506,93.431,22.09507578]
[1770236833813,9.6444,93.496,93.431,22.09507578]
[1770236834518,9.6433,93.507,93.431,22.09507578]
[1770236834710,8.04429563,93.54,93.431,22.09507578]
[1770236835612,9.6432,93.508,93.431,22.09507578]
[1770236837115,9.6422,93.518,93.434,21.83327505]
[1770236837310,280.61543906,93.558,93.451,21.83327505]
[1770236838019,8.04429563,93.54,93.451,21.83327505]
[1770236838436,9.644,93.501,93.451,21.83327505]
[1770236838813,8.04429563,93.54,93.451,21.83327505]
[1770236839012,19.278,93.549,93.451,21.83327505]
[1770236840219,9.643,93.51,93.451,21.83327505]
[1770236841014,8.04429563,93.55,93.451,21.83327505]
[1770236841015,9.6419,93.521,93.451,21.83327505]
[1770236841421,280.61543906,93.558,93.451,21.83327505]
[1770236841816,280.61543906,93.558,93.462,9.6479]
[1770236842013,280.61543906,93.558,93.463,21.81402929]
[1770236843518,9.6396,93.544,93.471,21.80961408]
[1770236843721,8.04429563,93.61,93.491,21.80998274]
[1770236843918,9.80224462,93.683,93.561,21.80998274]
[1770236844113,8.04429563,93.68,93.581,21.80998274]
[1770236844314,1.85890485,93.674,93.581,21.80998274]
[1770236844513,8.04429563,93.66,93.581,21.80998274]
[1770236845422,9.6284,93.652,93.581,21.80998274]
[1770236845615,8.04429563,93.66,93.581,21.80998274]
[1770236846021,9.6299,93.637,93.581,21.80998274]
[1770236846722,9.6288,93.648,93.581,21.80998274]
[1770236847323,1.85878074,93.694,93.581,21.80998274]
[1770236847524,8.04429563,93.7,93.581,21.80998274]
[1770236847925,1.85842338,93.704,93.581,21.80998274]
[1770236847926,8.04429563,93.68,93.581,21.80998274]
[1770236848427,8.04429563,93.66,93.581,21.80998274]
[1770236848823,9.6311,93.625,93.581,21.80998274]
[1770236849028,8.04429563,93.64,93.581,21.80998274]
[1770236849425,9.6322,93.615,93.581,21.80998274]
[1770236849626,8.04429563,93.64,93.581,21.80998274]
[1770236849832,8.04429563,93.68,93.581,21.80998274]
[1770236850228,9.6298,93.639,93.581,21.80998274]
[1770236850933,9.631,93.627,93.581,21.80998274]
[1770236851122,8.04429563,93.66,93.581,21.80998274]
[1770236851723,8.04429563,93.66,93.54,21.87161768]
[1770236852823,8.04429563,93.66,93.541,21.87161768]
[1770236853734,9.6311,93.625,93.543,21.86315138]
[1770236854334,9.6322,93.616,93.543,21.86315138]
[1770236855434,149.7329,93.679,93.543,21.86315138]
[1770236855435,8.04429563,93.64,93.543,21.86315138]
[1770236855826,9.6341,93.596,93.543,21.86315138]
[1770236856027,8.04429563,93.62,93.543,21.86315138]
[1770236856336,9.634,93.597,93.543,21.86315138]
[1770236856932,8.04429563,93.62,93.543,21.86315138]
[1770236857434,9.6358,93.58,93.543,21.86315138]
[1770236857635,8.04429563,93.62,93.543,21.86315138]
[1770236858531,9.6357,93.581,93.543,21.86315138]
[1770236858730,149.7833,93.647,93.543,21.86315138]
[1770236858731,8.04429563,93.6,93.543,21.86315138]
[1770236859332,9.6375,93.563,93.498,21.87838017]
[1770236859630,8.04429563,93.6,93.498,21.87838017]
[1770236860934,8.04429563,93.62,93.498,21.87838017]
[1770236861333,9.6354,93.584,93.509,21.8750291]
[1770236861831,9.6364,93.574,93.509,21.8750291]
[1770236862026,19.2638,93.618,93.509,21.8750291]
[1770236862938,9.6351,93.587,93.511,21.87486751]
[1770236863132,8.04429563,93.64,93.511,21.87486751]
[1770236863538,9.6348,93.59,93.514,21.87486751]
[1770236863939,9.6356,93.582,93.516,21.87486751]
[1770236864637,8.02379168,93.61,93.516,21.87486751]
[1770236865230,9.6382,93.557,93.516,21.87486751]
[1770236866439,9.639,93.549,93.516,21.87486751]
[1770236867032,9.6381,93.558,93.516,21.87486751]
[1770236867337,8.02379168,93.59,93.516,21.87486751]
[1770236869145,8.02379168,93.59,93.475,21.93535634]
[1770236869346,8.02379168,93.57,93.475,21.93535634]
[1770236869741,9.6392,93.547,93.475,21.93535634]
[1770236870148,8.02379168,93.57,93.475,21.93535634]
[1770236870750,19.2741,93.568,93.475,21.93535634]
[1770236871251,9.6399,93.541,93.475,21.93535634]
[1770236871952,19.2741,93.568,93.475,21.93535634]
[1770236873149,8.02379168,93.59,93.477,21.94724274]
[1770236873753,149.8383,93.613,93.477,21.94724274]
[1770236873754,9.6409,93.531,93.477,21.94724274]
[1770236873953,8.02379168,93.57,93.477,21.94724274]
[1770236874654,9.642,93.52,93.477,21.94724274]
[1770236875150,9.6427,93.513,93.477,21.94724274]
[1770236875549,19.2758,93.56,93.477,21.94724274]
[1770236875851,9.6404,93.536,93.477,21.94724274]
[1770236876055,19.2758,93.56,93.477,21.94724274]
[1770236876447,9.6432,93.508,93.477,21.94724274]
[1770236877352,8.02379168,93.55,93.477,21.94724274]
[1770236877554,8.02379168,93.53,93.442,21.99165479]
[1770236879457,9.6459,93.483,93.442,21.99165479]
[1770236880146,9.6449,93.492,93.442,21.99165479]
[1770236880355,8.02379168,93.53,93.442,21.99165479]
[1770236880554,8.02379168,93.55,93.442,21.99165479]
[1770236880754,9.644,93.501,93.442,21.99165479]
[1770236881257,9.6431,93.51,93.442,21.99165479]
[1770236881557,149.8796,93.587,93.442,21.99165479]
[1770236881558,8.02379168,93.57,93.442,21.99165479]
[1770236881955,8.02379168,93.55,93.442,21.99165479]
[1770236883259,9.643,93.51,93.442,21.99165479]
[1770236883957,9.6438,93.503,93.442,21.99165479]
[1770236884161,8.02379168,93.55,93.444,22.05257291]
[1770236884561,9.6436,93.505,93.444,22.05257291]
[1770236885661,8.02379168,93.55,93.444,22.05257291]
[1770236885960,8.02379168,93.53,93.444,22.05257291]
[1770236886455,9.6461,93.48,93.444,22.05257291]
[1770236887061,149.9463,93.546,93.415,22.07229609]
[1770236887062,8.02379168,93.51,93.415,22.07229609]
[1770236887268,8.02379168,93.49,93.415,22.07229609]
[1770236887764,9.6474,93.468,93.415,22.07229609]
[1770236887962,8.02379168,93.51,93.415,22.07229609]
[1770236888361,19.2867,93.507,93.415,22.07229609]
[1770236889265,27.30579168,93.53,93.415,22.07229609]
[1770236889666,9.6452,93.489,93.417,22.09926517]
[1770236890063,8.02379168,93.53,93.417,22.09926517]
[1770236890466,9.6459,93.482,93.417,22.09926517]
[1770236892166,8.02379168,93.51,93.417,22.09926517]
[1770236892362,8.02379168,93.49,93.417,22.09926517]
[1770236892562,9.6494,93.449,93.417,22.09926517]
[1770236893064,8.02379168,93.49,93.417,22.09926517]
[1770236893856,9.6481,93.461,93.417,22.09926517]
[1770236894058,8.02379168,93.49,93.417,22.09926517]
[1770236894663,9.6489,93.453,93.417,22.09926517]
[1770236895768,9.6489,93.453,93.374,1.86218743]
[1770236895769,8.02379168,93.49,93.399,22.14779859]
[1770236896072,8.02379168,93.47,93.399,22.14779859]
[1770236896274,9.652,93.423,93.399,22.14779859]
[1770236896873,9.6511,93.431,93.399,22.14779859]
[1770236897172,8.02379168,93.49,93.399,22.14779859]
[1770236898378,9.65,93.442,93.399,22.14779859]
[1770236898675,8.02379168,93.49,93.399,22.14779859]
[1770236899377,19.2922,93.48,93.399,22.14779859]
[1770236900680,9.6505,93.437,93.399,22.14779859]
[1770236903582,9.6513,93.43,93.399,22.14779859]
[1770236904975,19.2934,93.474,93.399,22.14779859]
[1770236905781,19.2939,93.472,93.399,22.14779859]
[1770236906079,8.02379168,93.47,93.399,22.14779859]
[1770236907285,9.6525,93.418,93.399,22.14779859]
[1770236907986,9.6515,93.428,93.399,22.14779859]
[1770236908574,9.6522,93.421,93.382,12.30640339]
[1770236909079,19.2959,93.462,93.382,12.30640339]
[1770236909383,9.6504,93.438,93.382,12.30640339]
[1770236909980,9.6496,93.446,93.382,12.30640339]
[1770236911377,9.6487,93.455,93.382,12.30640339]
[1770236912286,9.6495,93.448,93.382,12.30640339]
[1770236913281,19.2863,93.509,93.401,12.29895406]
[1770236913485,8.02379168,93.5,93.401,12.29895406]
[1770236913687,9.6493,93.449,93.401,12.29895406]
[1770236913883,8.02379168,93.5,93.401,12.29895406]
[1770236914278,9.65,93.443,93.401,12.29895406]
[1770236914478,8.02379168,93.48,93.401,12.29895406]
[1770236914879,9.6497,93.446,93.401,12.29895406]
[1770236915282,8.02379168,93.48,93.401,12.29895406]
[1770236916187,19.293,93.476,93.401,12.29895406]
[1770236916389,9.6506,93.437,93.401,12.29895406]
[1770236916782,9.6515,93.428,93.401,12.29895406]
[1770236916988,8.02379168,93.48,93.401,12.29895406]
[1770236917489,19.2952,93.466,93.401,12.29895406]
[1770236918187,9.6521,93.422,93.401,12.29895406]
[1770236918592,19.2952,93.466,93.401,12.29895406]
[1770236918893,8.02379168,93.48,93.401,12.29895406]
[1770236919091,9.6503,93.439,93.401,12.29895406]
[1770236919686,9.6511,93.432,93.401,12.29895406]
[1770236919888,8.02379168,93.48,93.401,12.29895406]
[1770236920391,9.6516,93.427,93.401,12.29895406]
[1770236920693,9.6516,93.427,93.336,9.90692155]
[1770236920694,8.02379168,93.46,93.385,12.47830514]
[1770236920992,8.02379168,93.44,93.321,12.47830514]
[1770236921191,150.0669,93.47,93.337,12.46278548]
[1770236921192,19.3015,93.435,93.337,12.46278548]
[1770236921490,8.02379168,93.48,93.361,12.46278548]
[1770236921993,19.2927,93.478,93.361,12.46278548]
[1770236922791,9.6503,93.44,93.364,12.46278548]
[1770236922991,8.02379168,93.48,93.364,12.46278548]
[1770236923396,8.02379168,93.46,93.364,12.46278548]
[1770236923590,19.2965,93.459,93.364,12.46278548]
[1770236923892,9.652,93.423,93.364,12.46278548]
[1770236924195,19.2965,93.459,93.364,12.46278548]
[1770236924587,8.05249321,93.47,93.364,12.46278548]
[1770236924588,17.86520889,93.47,93.364,12.46278548]
[1770236924894,9.81271568,93.469,93.364,12.46278548]
[1770236925290,19.297,93.457,93.364,12.46278548]
[1770236926595,8.05249321,93.47,93.364,12.46278548]
[1770236926795,9.6512,93.431,93.364,12.46278548]
[1770236927694,9.6519,93.424,93.364,12.46278548]
[1770236927997,8.05249321,93.47,93.364,12.46278548]
[1770236928194,9.6529,93.415,93.364,12.46278548]
[1770236928897,9.6537,93.407,93.364,12.46278548]
[1770236929391,19.2968,93.458,93.364,12.46278548]
[1770236930195,8.05249321,93.45,93.364,12.46278548]
[1770236930793,19.2993,93.446,93.364,12.46278548]
[1770236931397,150.0925,93.454,93.364,12.46278548]
[1770236931595,8.05249321,93.45,93.364,12.46278548]
[1770236931900,19.3012,93.437,93.364,12.46278548]
[1770236933500,9.6547,93.397,93.364,12.46278548]
[1770236935494,9.6537,93.407,93.364,12.46278548]
[1770236936590,9.6544,93.4,93.364,12.46278548]
[1770236937998,9.6551,93.393,93.364,12.46278548]
[1770236938902,9.81271568,93.443,93.364,12.46278548]
[1770236939198,17.86520889,93.45,93.364,12.46278548]
[1770236939394,9.81271568,93.445,93.364,12.46278548]
[1770236939801,9.81271568,93.447,93.364,12.46278548]
[1770236940301,19.3034,93.426,93.364,12.46278548]
[1770236941296,8.05249321,93.45,93.364,12.46278548]
[1770236941599,9.81271568,93.445,93.364,12.46278548]
[1770236941794,9.81271568,93.445,93.324,1.8630797]
[1770236941795,8.05249321,93.43,93.325,7.32122876]
[1770236942301,9.6564,93.38,93.325,7.32122876]
[1770236942605,8.05249321,93.43,93.325,7.32122876]
[1770236943099,9.81271568,93.429,93.325,7.32122876]
[1770236943303,17.86520889,93.43,93.325,7.32122876]
[1770236943705,19.3065,93.411,93.325,7.32122876]
[1770236944601,9.6575,93.37,93.325,7.32122876]
[1770236945399,9.6567,93.378,93.325,7.32122876]
[1770236946199,19.3065,93.411,93.325,7.32122876]
[1770236946399,3.00896395,93.4,93.325,7.32122876]
[1770236947506,3.00896395,93.39,93.325,7.32122876]
[1770236948305,150.1164,93.44,93.325,7.32122876]
[1770236948306,3.00896395,93.37,93.325,7.32122876]
[1770236948699,150.1628,93.411,93.325,7.32122876]
[1770236948700,9.6601,93.345,93.325,7.32122876]
[1770236950408,9.6605,93.341,93.29,3.00896395]
[1770236951308,9.6612,93.335,93.3,3.00896395]
[1770236951607,0.54898752,93.369,93.3,3.00896395]
[1770236952508,9.6611,93.335,93.301,3.59252024]
[1770236953207,6.00329944,93.363,93.301,3.59252024]
[1770236953807,9.6601,93.345,93.301,3.59252024]
[1770236954003,9.6601,93.345,93.31,3.00896395]
[1770236954201,6.00329944,93.363,93.31,3.00896395]
[1770236954406,6.00329944,93.363,93.3,3.00896395]
[1770236955510,9.6608,93.338,93.3,3.00896395]
[1770236955907,19.3116,93.387,93.32,3.00896395]
[1770236955908,10.84315011,93.38,93.32,3.00896395]
[1770236956114,10.84315011,93.38,93.31,3.00896395]
[1770236956313,13.85211406,93.38,93.31,3.00896395]
[1770236956512,9.6598,93.347,93.31,3.00896395]
[1770236956807,10.84315011,93.367,93.31,3.00896395]
[1770236957011,10.84315011,93.367,93.3,3.00896395]
[1770236957405,9.6598,93.347,93.3,3.00896395]
[1770236957803,9.6598,93.347,93.31,3.00896395]
[1770236958407,9.6606,93.34,93.31,3.00896395]
[1770236959112,10.84315011,93.367,93.31,3.00896395]
[1770236959410,10.84315011,93.367,93.32,3.00896395]
[1770236959915,10.84315011,93.367,93.284,1.86402275]
[1770236959916,10.86287274,93.39,93.34,3.00896395]
[1770236960815,9.657,93.375,93.34,3.00896395]
[1770236962009,10.85976674,93.374,93.31,3.00896395]
[1770236962708,10.85976674,93.369,93.3,3.00896395]
[1770236963809,19.3113,93.388,93.29,3.00896395]
[1770236963810,10.86493693,93.356,93.29,3.00896395]
[1770236964416,10.86493693,93.356,93.3,3.00896395]
[1770236965717,9.6607,93.338,93.3,3.00896395]
[1770236965918,10.86493693,93.356,93.3,3.00896395]
[1770236966819,9.66,93.346,93.3,3.00896395]
[1770236967817,9.66,93.346,93.3,12.67366395]
[1770236968021,19.3113,93.388,93.32,3.00896395]
[1770236968022,10.89073597,93.371,93.32,3.00896395]
[1770236968518,9.6578,93.367,93.33,3.00896395]
[1770236969318,9.6585,93.36,93.33,3.00896395]
[1770236969721,10.89073597,93.386,93.33,3.00896395]
[1770236970519,10.89073597,93.386,93.311,9.6634]
[1770236970825,9.6577,93.368,93.311,9.6634]
[1770236972321,9.6577,93.368,93.319,9.6626]
[1770236973625,10.89157066,93.404,93.32,8.05809122]
[1770236973824,10.89157066,93.404,93.333,9.96549092]
[1770236974029,10.89157066,93.404,93.334,9.96549092]
[1770236974229,10.89157066,93.404,93.335,9.96549092]
[1770236974428,10.89157066,93.419,93.34,8.05809122]
[1770236974825,10.89157066,93.419,93.344,9.96549092]
[1770236975125,10.89157066,93.419,93.35,9.96549092]
[1770236975330,9.6534,93.409,93.344,9.96549092]
[1770236975529,9.6534,93.409,93.34,8.05809122]
[1770236976030,9.6543,93.4,93.348,9.6596]
[1770236976524,9.6543,93.4,93.339,9.6606]
[1770236976727,9.6551,93.393,93.321,9.96549092]
[1770236977222,9.6561,93.383,93.33,9.6615]
[1770236977422,10.88772872,93.399,93.3,32.18]
[1770236977423,10.90872889,93.382,93.315,9.96549092]
[1770236977628,10.90872889,93.382,93.313,9.96549092]
[1770236978225,10.90872889,93.382,93.314,9.96549092]
[1770236978728,9.6563,93.381,93.322,9.6624]
[1770236980132,9.6563,93.381,93.309,9.96549092]
[1770236980133,10.90872889,93.382,93.309,9.96549092]
[1770236980434,10.90872889,93.382,93.303,9.96549092]
[1770236980628,10.90872889,93.382,93.3,8.05809122]
[1770236981029,9.6572,93.373,93.31,9.6636]
[1770236981228,10.90278433,93.372,93.3,8.05809122]
[1770236981428,9.6593,93.352,93.302,9.6644]
[1770236981633,10.90278433,93.351,93.28,8.05809122]
[1770236983132,10.90193376,93.347,93.267,9.96549092]
[1770236983333,10.90193376,93.347,93.26,8.05809122]
[1770236983631,9.6636,93.311,93.255,1.86484683]
[1770236983928,9.6636,93.311,93.248,9.67]
[1770236984135,10.90193376,93.304,93.248,9.67]
[1770236984332,10.90193376,93.304,93.224,9.96549092]
[1770236984635,10.90193376,93.304,93.235,1.86544162]
[1770236984825,10.90193376,93.292,93.235,1.86544162]
[1770236985031,10.90193376,93.292,93.21,18.02358214]
[1770236985328,10.90193376,93.292,93.215,1.86571165]
[1770236985530,10.92024922,93.314,93.239,9.6709]
[1770236985930,9.6635,93.312,93.239,9.6709]
[1770236986135,9.6635,93.312,93.215,1.86571165]
[1770236986136,10.92024922,93.311,93.215,1.86571165]
[1770236986534,9.6644,93.304,93.23,8.07365061]
[1770236986736,20.58464922,93.304,93.23,8.07365061]
[1770236986935,10.88197414,93.303,93.237,9.6712]
[1770236988734,20.54647414,93.302,93.237,9.6712]
[1770236988940,20.54647414,93.302,93.23,8.07365061]
[1770236989336,10.86101225,93.301,93.23,8.07365061]
[1770236989534,9.6648,93.299,93.232,9.6717]
[1770236989728,10.86101225,93.298,93.232,9.6717]
[1770236990238,10.86101225,93.296,93.232,9.6717]
[1770236990439,10.86101225,93.296,93.235,9.6713]
[1770236990641,10.86101225,93.296,93.215,1.86571165]
[1770236991636,10.89536962,93.294,93.215,1.86571165]
[1770236992437,10.89536962,93.292,93.215,1.86571165]
[1770236993536,10.89768895,93.287,93.223,9.6727]
[1770236995037,10.89768895,93.287,93.215,1.86571165]
[1770236996345,10.88051,93.284,93.215,1.86571165]
[1770236996935,10.88051,93.278,93.212,9.6737]
[1770236997340,10.88981668,93.329,93.221,9.6728]
[1770236997845,10.88981668,93.296,93.231,9.6717]
[1770236998347,10.88981668,93.296,93.22,8.07365061]
[1770236998348,10.88981668,93.294,93.236,9.6713]
[1770236998547,10.88981668,93.294,93.22,8.07365061]
[1770236999544,10.9264497,93.292,93.22,8.07365061]
[1770236999851,10.9264497,93.349,93.24,8.07365061]
[1770237000048,10.9264497,93.32,93.24,8.07365061]
[1770237000649,10.9264497,93.336,93.26,8.07365061]
[1770237000841,10.9264497,93.336,93.24,8.07365061]
[1770237001351,9.6638,93.309,93.25,9.6699]
[1770237001542,20.57947675,93.309,93.24,8.07365061]
[1770237002443,9.6629,93.318,93.262,9.6686]
[1770237002646,9.81289927,93.405,93.24,8.07365061]
[1770237002647,10.91567675,93.369,93.26,8.07365061]
[1770237003240,9.6611,93.335,93.283,9.6664]
[1770237003442,10.91178554,93.334,93.25,8.07365061]
[1770237003851,10.91178554,93.334,93.288,9.6658]
[1770237004954,20.57298554,93.334,93.28,9.6667]
[1770237005152,10.91956223,93.333,93.25,8.07365061]
[1770237005356,10.91956223,93.333,93.22,8.07365061]
[1770237005552,10.91956223,93.333,93.2,8.07365061]
[1770237005752,10.91956223,93.303,93.22,8.07365061]
[1770237006455,10.91956223,93.29,93.2,32.18]
[1770237006661,10.91956223,93.29,93.19,8.07365061]
[1770237007063,10.9157942,93.278,93.208,9.6742]
[1770237007363,10.9157942,93.278,93.19,40.25365061]
[1770237007564,10.9157942,93.295,93.21,8.07365061]
[1770237008260,9.6654,93.293,93.21,8.07365061]
[1770237008456,10.9157942,93.292,93.21,8.07365061]
[1770237008959,10.9157942,93.278,93.209,9.6741]
[1770237009862,10.9157942,93.278,93.195,9.6755]
[1770237010065,10.9157942,93.278,93.17,8.07365061]
[1770237010364,9.53233135,93.26,93.199,9.6751]
[1770237010860,9.53233135,93.319,93.211,9.6739]
[1770237011560,9.53249085,93.296,93.211,9.6739]
[1770237011756,9.53249085,93.296,93.222,9.6727]
[1770237012158,9.53249085,93.294,93.222,9.6727]
[1770237012665,9.53249085,93.294,93.233,9.6716]
[1770237013664,9.53249085,93.294,93.243,9.6705]
[1770237013861,9.6631,93.316,93.243,9.6705]
[1770237014065,9.5304719,93.315,93.23,8.07365061]
[1770237015366,9.5304719,93.315,93.252,9.6696]
[1770237015569,9.53072761,93.379,93.25,8.07365061]
[1770237015860,9.53072761,93.379,93.212,19.3475]
[1770237015861,9.53072761,93.379,93.27,8.07365061]
[1770237016659,9.53072761,93.379,93.25,8.07365061]
[1770237016865,9.53072761,93.337,93.27,9.6677]
[1770237017462,9.53072761,93.337,93.278,9.6669]
[1770237018267,9.52525973,93.335,93.268,9.6679]
[1770237018662,9.52525973,93.335,93.25,8.07365061]
[1770237019667,9.53100415,93.333,93.267,9.6681]
[1770237020371,9.53100415,93.329,93.275,9.6672]
[1770237021768,19.3105,93.392,93.25,8.07365061]
[1770237021769,9.53289094,93.391,93.29,8.07365061]
[1770237022469,9.53289094,93.353,93.295,9.6652]
[1770237023168,9.51883475,93.349,93.295,9.6652]
[1770237023469,9.51883475,93.349,93.286,9.666]